Cogmind - Beta 16.1 @@@ ROGUE MODE // 2026.04.23 @ 02:48:26 Player: Keestofa Result: Destroyed by Y-72 Warden with Railgun Performance ------------- Evolutions (5) 2500 Regions Visited (12) 2400 Robots Destroyed (170) 850 Value Destroyed (6654) 6654 Prototype IDs (15) 300 Alien Tech Used (0) 0 Bonus (3286) 3286 TOTAL SCORE: 15990 Bonus ------- High Alert Combat Kills 140 Follower Combat Kills 414 Met Warlord at Base 500 MAIN.C Attacked Warlord 500 Warlord Defense Kills 1732 Cogmind --------- Core Integrity 0/1000 Matter 290/300 Energy 262/315 System Corruption 1% Temperature Cool (47) Movement Rolling (105) Ox1 Location -4/Proximity Caves Parts ------- > --- POWER (2) -------- Neutrino Core > --- PROPULSION (4) --- Wheel Compact Wheel Armored Huge Wheel > --- UTILITY (8) ------ Improved Coolant Injector Large Storage Unit Advanced Targeting Computer Improved Armor Integrity Analyzer Hacking Suite Advanced System Shield Improved Dynamic Insulation System > --- WEAPON (3) ------- Heavy Phase Cannon Vortex Cannon > --- INVENTORY (15) --- Cooled Deuterium Engine Neutrino Core Antimatter Reactor Micro Antimatter Reactor Flexi-carbon Leg Flexi-carbon Leg Flexi-carbon Leg Improved Cryofiber Web Precision Matter Filter Makeshift Transmission Jammer Component Analysis Suite Signal Generator Peak State ------------ > --- POWER ------------ Light Fission Core Neutrino Core > --- PROPULSION ------- Improved Carbon-fiber Leg Flexi-carbon Leg Flexi-carbon Leg Flexi-carbon Leg > --- UTILITY ---------- Improved Cryofiber Web Improved Cooling System Large Storage Unit Advanced Targeting Computer Improved Medium Armor Plating Hacking Suite Improved System Shield Advanced System Shield > --- WEAPON ----------- Vortex Rifle Vortex Shotgun Vortex Cannon > --- INVENTORY -------- Cooled Deuterium Engine Neutrino Core Flexi-carbon Leg Flexi-carbon Leg Armored Huge Wheel Improved Coolant Injector Precision Matter Filter Improved Thermal Defense Suite Remote Force Field Component Analysis Suite Improved Dynamic Insulation System Heavy Phase Cannon KE Penetrator Signal Generator [Rating: 94] Favorites ----------- Power Deuterium Engine Engine Deuterium Engine Power Core Micro Nuclear Core Propulsion Armored Huge Wheel Leg Flexi-carbon Leg Wheel Armored Huge Wheel Utility Large Storage Unit Device Improved Cooling System Storage Large Storage Unit Processor Improved Targeting Computer Hackware Hacking Suite Protection Improved Light Armor Plating Weapon Plasma Cannon Energy Gun Variable Charge Gun Energy Cannon Plasma Cannon Ballistic Gun KE Penetrator Ballistic Cannon Gauss Cannon Launcher Improved Grenade Launcher Build | -11 -10 -9 -9 -8 -7 -6 -6 -6 -5 -5 -5 -4 ------- Run | Yrd Mat Mat Min Mat Fac Fac Was Fac Fac Upp War Pro Slots Evolved 10 | . . 2 . 2 2 2 . . 2 . . . Power 1 | . . . . . . 1 . . . . . . Propulsion 2 | . . 2 . . . . . . . . . . Utility 6 | . . . . 2 2 1 . . 1 . . . Weapon 1 | . . . . . . . . . 1 . . . Parts Attached 126 | 7 15 4 . 21 14 2 . 21 27 . 12 3 Power 17 | 1 1 . . 1 2 1 . 3 7 . 1 . Engine 8 | 1 1 . . 1 2 1 . . 2 . . . Core 9 | . . . . . . . . 3 5 . 1 . Reactor . | . . . . . . . . . . . . . Propulsion 32 | 2 5 3 . 5 1 . . 7 5 . 4 . Treads . | . . . . . . . . . . . . . Leg 25 | 2 5 3 . 3 . . . 7 5 . . . Wheel 7 | . . . . 2 1 . . . . . 4 . Hover . | . . . . . . . . . . . . . Flight . | . . . . . . . . . . . . . Utility 44 | 2 4 . . 9 8 1 . 10 6 . 2 2 Device 20 | 1 3 . . 3 2 1 . 4 3 . 2 1 Storage 3 | 1 1 . . 1 . . . . . . . . Processor 4 | . . . . 1 1 . . 1 . . . 1 Hackware 5 | . . . . . 1 . . 3 1 . . . Protection 12 | . . . . 4 4 . . 2 2 . . . Artifact . | . . . . . . . . . . . . . Weapon 33 | 2 5 1 . 6 3 . . 1 9 . 5 1 Energy Gun 12 | 1 1 1 . 2 . . . . 3 . 4 . Energy Cannon 7 | . 1 . . 1 1 . . 1 1 . 1 1 Ballistic Gun 6 | 1 3 . . . . . . . 2 . . . Ballistic Cannon 7 | . . . . 3 2 . . . 2 . . . Launcher 1 | . . . . . . . . . 1 . . . Special Weapon . | . . . . . . . . . . . . . Impact Weapon . | . . . . . . . . . . . . . Slashing Weapon . | . . . . . . . . . . . . . Piercing Weapon . | . . . . . . . . . . . . . Special Melee Weapon . | . . . . . . . . . . . . . Unidentified Prototypes 4 | . . . . 1 . . . . . . 3 . Parts Lost 32 | . 1 . . 3 3 . 1 5 12 . 1 6 Power 5 | . . . . . 1 . . . 3 . . 1 Propulsion 4 | . 1 . . 1 . . . . 2 . . . Utility 17 | . . . . 2 2 . 1 4 4 . 1 3 Weapon 6 | . . . . . . . . 1 3 . . 2 Highest Loss Streak 11 | . 1 . . 1 2 . 1 1 11 . 1 5 To Critical Strikes 2 | . . . . . . . . . 2 . . . Average Backups 12 | 1 6 9 10 13 12 11 12 12 13 14 13 13 Power 1 | . 1 1 1 1 1 1 1 1 1 2 2 4 Propulsion 2 | . 2 2 2 2 2 3 3 3 4 3 3 3 Utility 3 | . 1 3 5 3 3 2 2 1 4 8 6 5 Weapon 4 | . 1 2 2 6 5 5 6 5 2 1 1 . Tool/Special . | . . . . . . . . . . . . . Unused Backups 38 | . 3 . . 7 6 . . 5 6 . 3 8 Power 8 | . 1 . . . 1 . . 1 2 . . 3 Propulsion 5 | . 1 . . 1 . . . . 1 . . 2 Utility 11 | . 1 . . 1 2 . . . 2 . 2 3 Weapon 14 | . . . . 5 3 . . 4 1 . 1 . Tool/Special . | . . . . . . . . . . . . . Average Slot Usage (%) 91 | . 99 99 100 91 83 83 84 87 95 100 97 91 Engine 5 | . 14 11 11 8 6 13 13 5 1 . . . Core 4 | . . . . . . . . 7 9 11 11 10 Leg 14 | . 27 43 44 21 . . . 7 19 23 18 . Wheel 6 | . . . . 6 14 11 13 8 . . 2 17 Device 14 | . 14 11 11 12 11 12 13 20 14 11 11 14 Storage 7 | . 14 11 11 9 7 6 6 6 5 5 5 5 Processor 4 | . . . . 8 7 6 6 . 5 5 5 5 Hackware 8 | . . . . . 6 6 6 10 16 17 16 11 Protection 5 | . . . . 5 10 13 10 5 2 5 5 4 Energy Gun 2 | . 4 9 11 1 . . . . 4 . 3 10 Energy Cannon 4 | . . 10 11 2 7 6 6 6 2 5 5 5 Ballistic Gun 2 | . 22 1 . . . . . . 2 5 3 . Ballistic Cannon 6 | . . . . 14 7 5 6 5 4 5 3 . Peak Build Rating 94 | 7 9 15 13 41 48 53 53 66 89 86 94 85 Average Rating 53 | 5 8 13 13 32 45 50 51 58 80 86 87 82 On Entrance 42 | . 7 8 13 13 38 46 53 50 64 86 86 85 Avg Prop Armor Cover (%) 7 | . . . . . . . . . . . 7 . Naked Turns . | . . . . . . . . . . . . . Heaviest Build 94 | 14 20 22 22 49 53 65 65 64 75 75 94 88 Greatest Support 78 | 20 20 46 46 56 56 56 56 65 78 78 78 54 Greatest Overweight (x) 3 | . 1 . . 2 . 1 1 2 1 . 3 1 Average Overweight (x) . | . . . . . . 1 1 . . . . 1 Largest Inventory Capacity 15 | 8 10 10 10 15 15 15 15 15 15 15 15 15 Average Capacity 14 | 7 8 10 10 14 15 15 15 15 15 15 15 15 Most Carried 15 | 2 8 10 10 15 15 14 14 15 15 15 15 15 Average Carried 13 | 1 6 9 10 14 14 13 14 14 14 15 14 14 Final Capacity 15 | 8 10 10 10 15 15 15 15 15 15 15 15 15 Final Carried 15 | 2 8 10 10 15 15 14 14 15 15 15 15 12 Class Distribution -------------------- 42% | Mutant 24% | Hacker-Gunner 17% | Hacker-Mutant 6% | Scavenger-Mutant 3% | Hacker-Tank 3% | Scientist-Mutant Dominant Class ---------------- Mutant | -10/Materials Mutant | -9/Materials Mutant | -9/Mines Mutant | -8/Materials Mutant | -7/Factory Mutant | -6/Factory Mutant | -6/Waste Hacker-Mutant | -6/Factory Hacker-Gunner | -5/Factory Hacker-Gunner | -5/Upper Caves Hacker-Gunner | -5/Warlord Hacker-Tank | -4/Proximity Caves Resources | -11 -10 -9 -9 -8 -7 -6 -6 -6 -5 -5 -5 -4 ----------- Run | Yrd Mat Mat Min Mat Fac Fac Was Fac Fac Upp War Pro Matter Collected 4493 | 273 389 58 62 1000 485 23 . 1047 960 . 196 . Remotely . | . . . . . . . . . . . . . Salvage Created 6574 | 38 588 58 . 880 818 23 . 1509 1671 . 485 504 Parts 303 | 5 41 7 . 41 33 1 . 57 83 . 19 16 Haulers Intercepted 10 | . 2 . . 5 1 . . 1 1 . . . Recyclers Shooed 5 | . . 1 . . . . . 3 1 . . . Parts Field Recycled . | . . . . . . . . . . . . . Retrieved Matter . | . . . . . . . . . . . . . Parts Self-Destructed 9 | . . . . . . . . . . . . 9 Prevented . | . . . . . . . . . . . . . Parts Restored . | . . . . . . . . . . . . . Kills | -11 -10 -9 -9 -8 -7 -6 -6 -6 -5 -5 -5 -4 ------- Run | Yrd Mat Mat Min Mat Fac Fac Was Fac Fac Upp War Pro Combat Hostiles Destroyed 125 | . 12 2 . 22 15 . . 20 29 . 14 11 Guns 34 | . 12 2 . . . . . . 6 . 8 6 Cannons 76 | . . . . 20 15 . . 16 16 . 6 3 AOE 12 | . . . . 1 . . . 2 7 . . 2 Classes Destroyed 16 | 1 5 . . 3 4 . . . . . 3 . Worker 4 | . . . . . 1 . . 1 2 . . . Builder 7 | . 1 . . . . . . 2 4 . . . Tunneler 2 | 2 . . . . . . . . . . . . Hauler 10 | . 2 . . 5 1 . . 1 1 . . . Recycler 8 | . . . . . 3 . . 3 2 . . . Operator 1 | . . . . 1 . . . . . . . . Watcher 12 | . 2 1 . 1 1 1 . 4 2 . . . Swarmer 24 | . 3 2 . 4 5 . . . 9 . . 1 Grunt 55 | . 9 . . 13 6 . . 10 8 . 5 4 Brawler 4 | . . . . 1 . . . 1 . . 1 1 Duelist 4 | . . . . . . . . . . . 1 3 Protector 4 | . . . . . . . . . . . 3 1 Sentry 11 | . . . . 4 2 . . 3 2 . . . Hunter 10 | . . . . . 1 . . 2 7 . . . Programmer 12 | . . . . . 1 . . 4 3 . 2 2 Striker 1 | . . . . . . . . . . . 1 . Thug 1 | . . . . . . . . . . . 1 . Best Kill Streak 10 | 2 7 2 . 9 3 1 . 5 10 . 9 6 Combat Bots Only 9 | . 6 2 . 8 3 . . 4 8 . 9 6 Max Kills in Single Turn 5 | 1 2 1 . 1 2 1 . 3 5 . 2 2 Gunslinging . | . . . . . . . . . . . . . Exploded 4 | . . . . 1 . . . 2 4 . . 1 Melee . | . . . . . . . . . . . . . Uniques/NPCs Destroyed . | . . . . . . . . . . . . . Combat | -11 -10 -9 -9 -8 -7 -6 -6 -6 -5 -5 -5 -4 -------- Run | Yrd Mat Mat Min Mat Fac Fac Was Fac Fac Upp War Pro Hostile Shots Fired 892 | . 68 6 . 105 98 . 2 234 235 . 91 53 Missed 258 | . 18 2 . 30 32 . . 76 58 . 24 18 Hits 634 | . 50 4 . 75 66 . 2 158 177 . 67 35 Melee 6 | . . . . 1 . . 2 3 . . . . Projectile 628 | . 50 4 . 74 66 . . 155 177 . 67 35 AOE 1 | . . . . 1 . . . . . . . . Critical Strikes 29 | . 1 . . 4 1 . 2 8 7 . 6 . Part Disruptions 1 | . . . . . . . . . . . 1 . Actively Blocked 1 | . . . . . . . . . . . 1 . Damage Taken 9259 | . 573 33 . 1184 971 . 62 1882 3257 . 693 604 Core 1588 | . 95 . . 153 193 . . 144 828 . 61 114 Absorbed by Shields 1534 | . . . . . . . 22 651 . . 657 204 Ignored by Resistances 163 | . . . . . . . . 148 15 . . . Regen/Repaired (Parts) 854 | . . . . . 112 185 . 364 . . 193 . Core Remaining (%) 81 | 100 62 . 100 72 72 . . 83 . . . . Volleys Fired 419 | 3 60 5 . 81 50 2 . 101 78 . 23 16 Largest 3 | 2 2 2 . 2 2 2 . 2 3 . 3 3 Hottest 310 | 70 85 105 . 120 120 120 . 165 310 . 210 190 Shots Fired 907 | 6 118 10 . 161 100 4 . 197 195 . 69 47 Gun 287 | 6 118 5 . 10 . . . . 76 . 42 30 Cannon 615 | . . 5 . 151 100 4 . 197 114 . 27 17 Launcher 5 | . . . . . . . . . 5 . . . Special . | . . . . . . . . . . . . . Kinetic 456 | 3 105 . . 118 50 2 . 95 83 . . . Thermal 333 | 3 13 5 . 34 50 2 . 102 100 . 8 16 Explosive 5 | . . . . . . . . . 5 . . . Electromagnetic 21 | . . 5 . 9 . . . . 7 . . . Entropic 92 | . . . . . . . . . . . 61 31 Robot Hit Streak 23 | 4 14 8 . 16 13 2 . 14 23 . 21 22 Robot Miss Streak 6 | . 4 2 . 4 4 1 . 4 6 . 3 4 Penetration Max 1 | . . . . . 1 . . 1 1 . . . Secondary Targets 1 | . 1 . . . . . . . . . . . Max Gunslinging Chain 1 | . 1 . . . . . . . . . . . Shots Hit Robots 604 | 4 75 6 . 116 64 2 . 128 126 . 51 32 Core Hits 279 | 2 32 4 . 44 29 1 . 52 63 . 30 22 Critical Kills 3 | . . . . 1 1 . . 1 . . . . Critical Parts Destroyed 4 | . . . . . . . . . . . 1 3 Critical Strikes 44 | . 1 . . 6 8 1 . 10 10 . 5 3 Burn 1 | . 1 . . . . . . . . . . . Meltdown 3 | . . . . 1 1 . . 1 . . . . Blast 32 | . . . . 5 7 1 . 9 10 . . . Detonate 4 | . . . . . . . . . . . 1 3 Sunder 4 | . . . . . . . . . . . 4 . Melee Attacks . | . . . . . . . . . . . . . Impact . | . . . . . . . . . . . . . Slashing . | . . . . . . . . . . . . . Piercing . | . . . . . . . . . . . . . Sneak Attacks . | . . . . . . . . . . . . . Combat Hostiles . | . . . . . . . . . . . . . Follow-up Attacks . | . . . . . . . . . . . . . Damage Inflicted 20464 | 42 926 84 . 3081 1890 54 . 4029 4744 . 3503 2111 Guns 5878 | 42 918 66 . 109 . . . . 1270 . 2171 1302 Cannons 12593 | . . 18 . 2801 1890 54 . 3798 2599 . 1187 246 Explosions 1798 | . . . . 61 . . . 222 807 . 145 563 Melee . | . . . . . . . . . . . . . Ramming 195 | . 8 . . 110 . . . 9 68 . . . Kinetic 7756 | 6 778 . . 2214 1068 29 . 1906 1755 . . . Thermal 7142 | 36 140 18 . 648 822 25 . 2114 2123 . 407 809 Explosive 697 | . . . . . . . . . 697 . . . Electromagnetic 276 | . . 66 . 109 . . . . 101 . . . Impact . | . . . . . . . . . . . . . Slashing . | . . . . . . . . . . . . . Piercing . | . . . . . . . . . . . . . Entropic 4398 | . . . . . . . . . . . 3096 1302 Highest Corruption 16 | . . . . 8 . . 8 16 5 5 5 1 Average Corruption 9 | . . . . 7 . . 8 13 4 5 1 1 Corruption Purged . | . . . . . . . . . . . . . Corruption Blocked . | . . . . . . . . . . . . . Effects 123 | . . . . 10 . . 3 82 25 . 2 1 Message Errors 30 | . . . . 5 . . . 18 5 . 1 1 Matter Fused 26 | . . . . 1 . . . 18 6 . 1 . Heat Flow Errors 9 | . . . . 2 . . . 4 3 . . . Energy Discharges 17 | . . . . 1 . . 1 11 4 . . . Parts Rejected 1 | . . . . . . . 1 . . . . . Data Loss (minor) 13 | . . . . . . . . 9 4 . . . Data Loss (major) 4 | . . . . . . . 1 3 . . . . Misfires 9 | . . . . 1 . . . 6 2 . . . Alerts 1 | . . . . . . . . 1 . . . . Misdirections 1 | . . . . . . . . 1 . . . . Weapon Failures 12 | . . . . . . . . 11 1 . . . Overload Shots 1 | . . . . . . . . . 1 . . . Overflow Damage 418 | . . 4 . 45 40 . . 64 172 . 47 46 Projectiles 240 | . . 4 . 45 40 . . 36 68 . 47 . Explosions 178 | . . . . . . . . 28 104 . . 46 Melee . | . . . . . . . . . . . . . Knockbacks 53 | . . . . 19 6 . . 17 11 . . . Impact 1 | . . . . . . . . . 1 . . . Kinetic 49 | . . . . 18 6 . . 15 10 . . . Secondary 3 | . . . . 1 . . . 2 . . . . Self-Inflicted Damage 359 | . . . . 30 75 . . 142 30 . . 82 Shots 5 | . . . . . 1 . . 2 1 . . 1 Rammed 13 | . . . . 13 . . . . . . . . Targets Rammed 30 | . 3 . . 20 . . . 1 6 . . . Kicked 17 | . 3 . . 7 . . . 1 6 . . . Crushed . | . . . . . . . . . . . . . Highest Temperature 609 | 40 126 36 . 263 249 48 . 232 609 . 149 214 Average Temperature 97 | 19 49 23 . 43 70 26 . 72 221 . 53 103 Received Heat Transfer 2281 | . 279 . . 570 201 . . 613 243 . 255 120 Effects 16 | . . . . 3 . . . . 13 . . . Shutdowns 1 | . . . . . . . . . 1 . . . Energy Bleed 2 | . . . . . . . . . 2 . . . Interference 7 | . . . . 3 . . . . 4 . . . Matter Decay 1 | . . . . . . . . . 1 . . . Short Circuit 1 | . . . . . . . . . 1 . . . Damage (minor) 2 | . . . . . . . . . 2 . . . Damage (core) 2 | . . . . . . . . . 2 . . . Siege Activations . | . . . . . . . . . . . . . Martial Activations . | . . . . . . . . . . . . . Shielding Activations . | . . . . . . . . . . . . . Robots Disrupted . | . . . . . . . . . . . . . Combat Hostiles . | . . . . . . . . . . . . . Robots Corrupted . | . . . . . . . . . . . . . Combat Hostiles . | . . . . . . . . . . . . . Parts Fried . | . . . . . . . . . . . . . Impact Corruptions . | . . . . . . . . . . . . . Robots Melted 4 | . . . . 1 1 . . 2 . . . . Combat Hostiles 3 | . . . . 1 . . . 2 . . . . Parts Melted 10 | . . . . 1 2 . . 2 5 . . . Heat Transferred 10809 | 111 481 37 . 1233 1600 50 . 3570 2740 . 396 591 Parts Sabotaged . | . . . . . . . . . . . . . Parts Stolen . | . . . . . . . . . . . . . Parts Stripped . | . . . . . . . . . . . . . Power Chain Reactions 2 | . . . . 1 . . . . 1 . . . Alert | -11 -10 -9 -9 -8 -7 -6 -6 -6 -5 -5 -5 -4 ------- Run | Yrd Mat Mat Min Mat Fac Fac Was Fac Fac Upp War Pro Maximum Alert Level 2 | . . . . 1 1 . . 1 2 . . . Low Security (%) 72 | 100 100 100 100 90 60 100 100 69 36 . . . Level 1 16 | . . . . 9 39 . . 30 5 . . . Level 2 11 | . . . . . . . . . 58 . . . Level 3 . | . . . . . . . . . . . . . Level 4 . | . . . . . . . . . . . . . Level 5 . | . . . . . . . . . . . . . High Security . | . . . . . . . . . . . . . Max Security . | . . . . . . . . . . . . . Peak Influence 582 | 5 185 74 20 294 273 127 15 333 582 . . . Initial 131 | . . 53 20 . 131 127 15 . 84 . . . Average 152 | . 85 51 6 91 138 88 4 138 335 . . . Influence Increases 4532 | 10 400 80 . 743 558 26 . 849 1065 . 543 258 Destroy 0b10 Robot/C 2640 | . 240 40 . 440 300 . . 400 580 . 420 220 Destroy 0b10 Robot/NC 235 | 10 25 5 . 35 30 5 . 55 55 . 15 . Destroy Leader 474 | . 68 2 . 82 54 2 . 120 116 . . 30 Allied During Kill 116 | . . . . . . . . . . . 108 8 Successful Hack 149 | . 5 17 . . 14 19 . 74 20 . . . Disable Machine 270 | . . . . 30 60 . . 105 75 . . . Destroy Structure 288 | . 2 1 . 36 55 . . 50 144 . . . Lose Combat Pursuer 360 | . 60 15 . 120 45 . . 45 75 . . . Influence Decreases 4456 | 10 271 156 53 453 587 244 43 677 734 187 418 623 Entered New Map 1462 | . . 76 33 . 159 134 28 . 88 187 316 441 Time Decay 2419 | 10 261 80 20 432 398 110 15 477 452 . 52 112 Lost Part 301 | . 10 . . 21 30 . . 50 120 . 10 60 Lost Ally 50 | . . . . . . . . . . . 40 10 Purge Threat 224 | . . . . . . . . 150 74 . . . Squads Dispatched 20 | . 3 . . . 4 . . 7 5 . . 1 Investigation 5 | . 2 . . . . . . 2 1 . . . Extermination 7 | . . . . . 2 . . 4 1 . . . Reinforcement 6 | . 1 . . . 2 . . 1 2 . . . Assault 2 | . . . . . . . . . 1 . . 1 Garrison . | . . . . . . . . . . . . . Intercept . | . . . . . . . . . . . . . Searches Triggered . | . . . . . . . . . . . . . Construction Impeded 2 | . . . . . . . . . 2 . . . Haulers Reinforced 1 | . . . . . 1 . . . . . . . Active Scanning Responses . | . . . . . . . . . . . . . Cargo Convoy Interrupts . | . . . . . . . . . . . . . Stealth | -11 -10 -9 -9 -8 -7 -6 -6 -6 -5 -5 -5 -4 --------- Run | Yrd Mat Mat Min Mat Fac Fac Was Fac Fac Upp War Pro Distress Signals 8 | . . . . 2 1 . . 3 2 . . . Communications Jammed . | . . . . . . . . . . . . . Distress Signals . | . . . . . . . . . . . . . Times Spotted 228 | . 22 4 . 32 20 1 5 33 40 . 54 17 Peak Tracking Total 19 | . 4 3 . 10 4 1 5 4 9 . 19 12 Tactical Retreats 19 | . 2 1 . 7 2 . . 2 5 . . . Traps | -11 -10 -9 -9 -8 -7 -6 -6 -6 -5 -5 -5 -4 ------- Run | Yrd Mat Mat Min Mat Fac Fac Was Fac Fac Upp War Pro Traps Triggered 7 | . 2 . . 3 1 1 . . . . . . Indirectly . | . . . . . . . . . . . . . Trap Hack Attempts . | . . . . . . . . . . . . . Triggered . | . . . . . . . . . . . . . Disarmed 3 | . . 3 . . . . . . . . . . Reprogrammed . | . . . . . . . . . . . . . Reused . | . . . . . . . . . . . . . Traps Extracted . | . . . . . . . . . . . . . Installed . | . . . . . . . . . . . . . Triggered . | . . . . . . . . . . . . . Machines | -11 -10 -9 -9 -8 -7 -6 -6 -6 -5 -5 -5 -4 ---------- Run | Yrd Mat Mat Min Mat Fac Fac Was Fac Fac Upp War Pro Machines Disabled 20 | . . . . 2 4 . . 7 5 . 2 . Max in Single Turn 4 | . . . . 1 2 . . 4 2 . 1 . Garrison Access 4 | . . . . . . 1 . 1 2 . . . Machines Repaired . | . . . . . . . . . . . . . Machines Dismantled . | . . . . . . . . . . . . . Machines Sabotaged . | . . . . . . . . . . . . . Overloaded Fab Kills . | . . . . . . . . . . . . . Hacking | -11 -10 -9 -9 -8 -7 -6 -6 -6 -5 -5 -5 -4 --------- Run | Yrd Mat Mat Min Mat Fac Fac Was Fac Fac Upp War Pro Machines Accessed 49 | . 3 4 . 4 6 3 . 15 10 . 4 . Terminals 23 | . 3 4 . 3 2 1 . 6 4 . . . Fabricators 5 | . . . . . . . . 3 2 . . . Repair Stations 4 | . . . . . 1 1 . 2 . . . . Recycling Units 2 | . . . . . . . . 1 1 . . . Scanalyzers 5 | . . . . 1 2 . . 1 1 . . . Garrison Access 6 | . . . . . 1 1 . 2 2 . . . Total Hacks 176 | . 8 15 . 9 19 12 . 74 28 . 11 . Successful 103 | . 1 10 . 5 10 9 . 44 13 . 11 . Failed 71 | . 7 5 . 4 8 3 . 29 15 . . . Catastrophic 8 | . . . . 2 1 . . 4 1 . . . Database Lockouts 2 | . . . . . 1 . . 1 . . . . Manual 46 | . 5 7 . 6 3 2 . 13 7 . 3 . Terminals 90 | . 8 15 . 7 9 6 . 31 14 . . . Fabricators 13 | . . . . . . . . 6 7 . . . Repair Stations 23 | . . . . . 3 4 . 16 . . . . Recycling Units 4 | . . . . . . . . 2 2 . . . Scanalyzers 25 | . . . . 2 5 . . 15 3 . . . Garrison Access 10 | . . . . . 2 2 . 4 2 . . . Terminal Hacks 36 | . . 6 . 1 4 3 . 10 1 . 11 . Record 11 | . . 1 . . . . . . . . 10 . Part Schematic 4 | . . . . . . 1 . 3 . . . . Open Door 1 | . . . . . . . . . . . 1 . Emergency Access Points 1 | . . . . . 1 . . . . . . . Terminal Index 1 | . . . . . . . . 1 . . . . Fabricator Index 1 | . . . . . . . . 1 . . . . Alert Level 2 | . . . . 1 1 . . . . . . . Unreport Threat 2 | . . . . . . . . 1 1 . . . Locate Traps 6 | . . 2 . . 1 1 . 2 . . . . Disarm Traps 1 | . . 1 . . . . . . . . . . Patrol Status 1 | . . . . . . 1 . . . . . . Investigation Status 1 | . . . . . . . . 1 . . . . Recall Investigation 1 | . . . . . . . . 1 . . . . Zone Layout 3 | . . 2 . . 1 . . . . . . . Fabricator Hacks 6 | . . . . . . . . 3 3 . . . Network Status 2 | . . . . . . . . 1 1 . . . Load Schematic 2 | . . . . . . . . 1 1 . . . Build 2 | . . . . . . . . 1 1 . . . Repair Station Hacks 17 | . . . . . 2 4 . 11 . . . . Scan Component 9 | . . . . . 1 2 . 6 . . . . Repair 8 | . . . . . 1 2 . 5 . . . . Recycling Unit Hacks 1 | . . . . . . . . . 1 . . . Report Inventory 1 | . . . . . . . . . 1 . . . Scanalyzer 21 | . . . . 2 2 . . 14 3 . . . Insert Component 3 | . . . . . . . . 3 . . . . Analyze 5 | . . . . . . . . 5 . . . . Retrieve Study 13 | . . . . 2 2 . . 6 3 . . . Garrison Access Hacks 4 | . . . . . . 1 . 1 2 . . . Seal Access 4 | . . . . . . 1 . 1 2 . . . Unauthorized Hacks 18 | . 1 4 . 2 2 1 . 5 3 . . . Terminals 15 | . 1 4 . 2 2 1 . 3 2 . . . Botnet 15 | . 1 4 . 2 2 1 . 3 2 . . . Fabricators 1 | . . . . . . . . 1 . . . . Liberate 1 | . . . . . . . . 1 . . . . Repair Stations . | . . . . . . . . . . . . . Recycling Units 1 | . . . . . . . . . 1 . . . Mask 1 | . . . . . . . . . 1 . . . Scanalyzers . | . . . . . . . . . . . . . Garrison Access 1 | . . . . . . . . 1 . . . . Redirect 1 | . . . . . . . . 1 . . . . Data Cores Recovered 1 | . . . . 1 . . . . . . . . Used 1 | . . . . 1 . . . . . . . . Hacking Detections 40 | . 3 4 . 3 6 2 . 15 7 . . . Full Trace Events 3 | . . . . . . . . 2 1 . . . Feedback Events . | . . . . . . . . . . . . . Feedback Blocked . | . . . . . . . . . . . . . Robot Schematics Acquired . | . . . . . . . . . . . . . Robots Built . | . . . . . . . . . . . . . Authchips . | . . . . . . . . . . . . . Time . | . . . . . . . . . . . . . Total Robot Build Rating . | . . . . . . . . . . . . . Part Schematics Acquired 7 | . . . . . . 1 . 6 . . . . Parts Built 4 | . . . . . . . . 2 2 . . . Authchips . | . . . . . . . . . . . . . Time 137 | . . . . . . . . 84 53 . . . Total Part Build Rating 20 | . . . . . . . . 8 12 . . . Part Studies Acquired 12 | . . . . 1 2 . . 6 3 . . . Parts Repaired 8 | . . . . . 1 2 . 5 . . . . Time 290 | . . . . . 22 88 . 180 . . . . Parts Recycled . | . . . . . . . . . . . . . Recycled Matter . | . . . . . . . . . . . . . Retrieved Matter . | . . . . . . . . . . . . . Retrieved Components . | . . . . . . . . . . . . . Parts Scanalyzed 3 | . . . . . . . . 3 . . . . Part Schematics Acquired 3 | . . . . . . . . 3 . . . . Parts Damaged 1 | . . . . . . . . 1 . . . . Bothacking | -11 -10 -9 -9 -8 -7 -6 -6 -6 -5 -5 -5 -4 ------------ Run | Yrd Mat Mat Min Mat Fac Fac Was Fac Fac Upp War Pro Used RIF Installer . | . . . . . . . . . . . . . Robots Hacked . | . . . . . . . . . . . . . Non-combat . | . . . . . . . . . . . . . Combat . | . . . . . . . . . . . . . Robot Hacks Applied . | . . . . . . . . . . . . . Relay Couplers Released 4 | . . . . . . . . . 4 . . . Programmers 4 | . . . . . . . . . 4 . . . Fabnet Peak Effective % . | . . . . . . . . . . . . . Robots Rewired 5 | . . . . . . . . . . . 5 . Allies Hacked 1 | . . . . . . . . . . . 1 . Hacks Repelled 1 | . . . . . . . . . . . 1 . Allies | -11 -10 -9 -9 -8 -7 -6 -6 -6 -5 -5 -5 -4 -------- Run | Yrd Mat Mat Min Mat Fac Fac Was Fac Fac Upp War Pro Total Allies 5 | . . . . . . . . . . . 5 . Largest Group 5 | . . . . . . . . . . . 5 2 Highest-Rated Group 286 | . . . . . . . . . . . 286 92 Highest-Rated Ally 68 | . . . . . . . . . . . 68 58 Total Orders 1 | . . . . . . . . . . . 1 . FOLLOW 1 | . . . . . . . . . . . 1 . Ally Attacks 42 | . . . . . . . . . . . 42 . Total Damage 2139 | . . . . . . . . . . . 2139 . Kills 10 | . . . . . . . . . . . 10 . Allies Corrupted 1 | . . . . . . . . . . . 1 . Allies Melted . | . . . . . . . . . . . . . Intel | -11 -10 -9 -9 -8 -7 -6 -6 -6 -5 -5 -5 -4 ------- Run | Yrd Mat Mat Min Mat Fac Fac Was Fac Fac Upp War Pro Active Infowar (turns) 2353 | 11 436 112 94 595 . . . 865 240 . . . Traps 1105 | . . . . . . . . 865 240 . . . Seismic 1248 | 11 436 112 94 595 . . . . . . . . Robot Analysis Total . | . . . . . . . . . . . . . Derelict Logs Recovered . | . . . . . . . . . . . . . Drone Launches . | . . . . . . . . . . . . . Drone Recoveries . | . . . . . . . . . . . . . Exploration | -11 -10 -9 -9 -8 -7 -6 -6 -6 -5 -5 -5 -4 ------------- Run | Yrd Mat Mat Min Mat Fac Fac Was Fac Fac Upp War Pro Turns Passed 7999 | 95 655 161 94 1348 943 223 83 1944 1288 6 918 241 Spaces Moved 4822 | 59 308 104 79 701 675 116 78 1068 817 6 646 165 Core 4 | 4 . . . . . . . . . . . . Treads . | . . . . . . . . . . . . . Legs 2705 | 55 308 104 79 415 . . . 418 817 6 503 . Wheels 2113 | . . . . 286 675 116 78 650 . . 143 165 Hover . | . . . . . . . . . . . . . Flight . | . . . . . . . . . . . . . Fastest Speed 50 | 50 120 120 120 100 90 105 105 90 105 105 105 105 Average Speed 108 | 115 120 120 120 117 96 105 105 106 109 105 108 105 Slowest Speed 245 | 120 190 120 120 245 100 105 105 120 205 105 175 105 Overloaded Moves . | . . . . . . . . . . . . . Propulsion Burnouts . | . . . . . . . . . . . . . Robots Hopped . | . . . . . . . . . . . . . Potential Cave-ins . | . . . . . . . . . . . . . Cave-ins Triggered . | . . . . . . . . . . . . . Exploration Rate (%) 33 | 5 58 16 38 39 22 4 79 29 22 2 83 36 Regions Visited 12 Branch Regions 4 Pre-discovered Areas . | . . . . . . . . . . . . . Known Exits Taken . | . . . . . . . . . . . . . Unknown Exits Taken 10 | 1 1 1 1 1 1 . . 1 1 1 1 . Scrap Searched 3 | . . . 1 . . . . . . . . 2 Spaces Dug 8 | . . . . . . . . . 8 . . . Terrain Destroyed 269 | . . . . 35 59 . . 49 67 . 17 42 Melee . | . . . . . . . . . . . . . Projectile 130 | . . . . 27 15 . . 18 36 . 12 22 AOE 139 | . . . . 8 44 . . 31 31 . 5 20 Terrain Rammed . | . . . . . . . . . . . . . Walls Destroyed . | . . . . . . . . . . . . . Machines Disabled . | . . . . . . . . . . . . . Actions | -11 -10 -9 -9 -8 -7 -6 -6 -6 -5 -5 -5 -4 --------- Run | Yrd Mat Mat Min Mat Fac Fac Was Fac Fac Upp War Pro Total 6734 | 77 479 128 80 1061 874 213 78 1675 1052 5 813 199 Wait 1026 | 7 70 6 . 175 104 90 . 434 66 . 63 11 Move 4811 | 58 307 103 78 700 674 116 77 1067 816 5 645 165 Hop . | . . . . . . . . . . . . . Pick Up 90 | 2 8 3 1 18 11 1 . 15 21 . 8 2 Fast Attach 52 | 7 3 1 . 13 3 2 1 10 6 . 6 . Attach 42 | . . 2 . 7 5 2 . 7 11 . 5 3 Detach 15 | . . 1 . 7 . . . 3 . . 4 . Swap 95 | . 14 5 . 16 12 . . 18 27 . 3 . Drop 110 | . 14 2 1 24 15 . . 19 21 . 12 2 Fire 419 | 3 60 5 . 81 50 2 . 101 78 . 23 16 Melee . | . . . . . . . . . . . . . Ram 13 | . . . . 13 . . . . . . . . Kick 17 | . 3 . . 7 . . . 1 6 . . . Crush . | . . . . . . . . . . . . . Escape Stasis . | . . . . . . . . . . . . . Rewire 44 | . . . . . . . . . . . 44 . Trap . | . . . . . . . . . . . . . Miscellaneous . | . . . . . . . . . . . . . Route ------- -11/Scrapyard -10/Materials -9/Materials -9/Mines -8/Materials -7/Factory -6/Factory -6/Waste -6/Factory -5/Factory -5/Upper Caves -5/Warlord -4/Proximity Caves (discovered 1 exit: [*Fac]) History --------- Turn | Location | Event 32 | -11/Scrapyard | Discovered new exit (range 15) 96 | -11/Scrapyard | Entered Materials 312 | -10/Materials | Build established: Mutant 747 | -10/Materials | Discovered new exit (range 4) 751 | -10/Materials | Entered another Materials area 751 | -9/Materials | Evolved 2 slots: Propulsion x2 862 | -9/Materials | Discovered new exit (range 8) 912 | -9/Materials | Entered Mines 998 | -9/Mines | Discovered new exit (range 8) 1006 | -9/Mines | Entered Materials 1006 | -8/Materials | Evolved 2 slots: Utility x2 2153 | -8/Materials | Discovered new exit (range 16) 2252 | -8/Materials | Destroyed 8 combat bots 2354 | -8/Materials | Entered Factory 2354 | -7/Factory | Evolved 2 slots: Utility x2 2640 | -7/Factory | Repaired Arm. Huge Wheel 2791 | -7/Factory | Build established: Scavenger-Mutant 2956 | -7/Factory | Central database locked down 3234 | -7/Factory | Build established: Mutant 3255 | -7/Factory | Discovered new exit (range 15) 3297 | -7/Factory | Entered another Factory area 3297 | -6/Factory | Evolved 2 slots: Power x1, Utility x1 3433 | -6/Factory | Repaired Arm. Huge Wheel+ 3478 | -6/Factory | Repaired Gauss Cannon 3520 | -6/Factory | Sucked down chute 3520 | -6/Factory | Entered Waste 3527 | -6/Waste | Spotted C-40 Crusher 3529 | -6/Waste | Spotted C-40 Crusher 3532 | -6/Waste | Spotted C-40 Crusher 3535 | -6/Waste | EMP discharged 3559 | -6/Waste | Spotted C-40 Crusher 3571 | -6/Waste | Crushed by Compactor (1 part destroyed) 3571 | -6/Waste | Spotted C-40 Crusher 3587 | -6/Waste | Discovered new exit (range 16) 3603 | -6/Waste | Entered Factory 3750 | -6/Factory | System corruption reached 10% 3884 | -6/Factory | Repaired Plasma Cannon 3918 | -6/Factory | Repaired Hrd. Light Armor Plating 3963 | -6/Factory | Repaired Imp. Shield Generator 4003 | -6/Factory | Repaired Deuterium Engine+ 4062 | -6/Factory | Build established: Hacker-Mutant 4392 | -6/Factory | Fabricated Imp. Cooling System (x2) 4745 | -6/Factory | Repaired Gauss Cannon 4791 | -6/Factory | Spotted B-75 Beast 5011 | -6/Factory | Central database locked down 5487 | -6/Factory | Discovered new exit (range 11) 5547 | -6/Factory | Entered another Factory area 5547 | -5/Factory | Evolved 2 slots: Utility x1, Weapon x1 5846 | -5/Factory | Build established: Hacker-Gunner 5856 | -5/Factory | Fabricated Enh. Gauss Cannon (x2) 6044 | -5/Factory | Core integrity fell below 50% 6128 | -5/Factory | Destroyed 8 combat bots 6191 | -5/Factory | Lost 11 parts (3p2n4u2w) 6215 | -5/Factory | Core integrity fell below 20% 6447 | -5/Factory | First assault squad dispatched 6795 | -5/Factory | Discovered new exit (range 16) 6835 | -5/Factory | Entered Upper Caves 6838 | -5/Upper Caves | A Derelict revealed a hidden shortcut to "reach the base" 6841 | -5/Upper Caves | Entered Warlord 6876 | -5/Warlord | System corruption cleaned by Quarantine Array 7225 | -5/Warlord | Found Signal Generator 7310 | -5/Warlord | Met Warlord 7335 | -5/Warlord | Warlord's base attacked by MAIN.C 7447 | -5/Warlord | Found Prototype Energy Gun 7447 | -5/Warlord | Identified Vortex Shotgun 7451 | -5/Warlord | Found Prototype Energy Cannon 7451 | -5/Warlord | Identified Vortex Cannon 7459 | -5/Warlord | Found Prototype Energy Gun 7459 | -5/Warlord | Identified Vortex Rifle 7463 | -5/Warlord | Found Vortex Rifle 7470 | -5/Warlord | Found Vortex Cannon 7475 | -5/Warlord | Found Vortex Shotgun 7672 | -5/Warlord | Warlord forces counterattacked 7674 | -5/Warlord | Spotted Striker 7683 | -5/Warlord | Destroyed Striker 7711 | -5/Warlord | Destroyed 9 combat bots 7737 | -5/Warlord | Spotted Striker 7738 | -5/Warlord | Spotted Striker 7739 | -5/Warlord | Spotted Striker 7739 | -5/Warlord | Discovered new exit (range 12) 7759 | -5/Warlord | Entered Proximity Caves 7759 | -4/Proximity Caves | Accompanied by 2 allies 7800 | -4/Proximity Caves | Lost 6 allies 7897 | -4/Proximity Caves | Build established: Hacker-Tank 7964 | -4/Proximity Caves | Attracted the attention of an 0b10 outpost 7964 | -4/Proximity Caves | Discovered new exit (range 16) 8000 | -4/Proximity Caves | Destroyed by Y-72 Warden with Railgun Last Messages --------------- 07985_ Archangel 6a destroyed. 07987_ Entropic reaction triggered in Rnf. Fission Core. 07987_ Archangel 6b destroyed. 07987_ L-61 Swordsman destroyed. 07987_ Lgt. Fission Core destroyed. 07990_ B-60 Warrior destroyed. 07992_ Unknown Ballistic Gun fries itself beyond repair. 07992_ Power Sword fries itself beyond repair. 07993_ L-61 Swordsman destroyed. 07994_ Penetrated by Slug. 07995_ Imp. Medium Armor Plating destroyed. 07996_ Flexi-carbon Leg+ fries itself beyond repair. 07996_ Vortex Shotgun destroyed. 07998_ Vortex Rifle destroyed. 07999_ Imp. Cooling System destroyed. 08000_ Penetrated by Slug. [Achievement: Achiever] Map ----- +----------------------------------------------------+ | "" ???## #????????????????????????????? | | """ ???# ##???????????????????????????? | | "" ??# #???????????????????????????? | | ?# #???????????????????????????? | | #### ?# ##???????????????????????????? | | ??## ??# #????????????????????????????? | | % ???########?# #????????????????????????????? | | %???????????## #????????????????????????????? | | %%??????????## #????????????????????????????? | | ???????????# #????????????????????????????? | | ?????????????# #????????????????????????????? | | ?????????????##### #????????????????????????????? | | ?????????????????# #????????????????????????????? | | ?????????????????# #????????????????????????????? | | ?????????????????# #????????????????????????????? | | ?????????????????# #????????????????????????????? | | ?????????????????# #????????????????????????????? | | ?????????????????# #????????????????????????????? | | ?????????????????# #????????????????????????????? | | ?????????????????# #????????????????????????????? | | ????????????????## #????????????????????????????? | | ????????????????#; ##??###??????????????????????? | | ???????????### #; ####;#####??????????????????? | | ???????????? ;; !%= ;#??????????????????? | | ????????????????# g!!%* ;##;##???????????????? | | ???????????????#; %%%!@ % % ????????? | | ???????????????# =b; != g %< ????????? | | ??????????????# ; ;###### ????????? | | ?????????????# ;; ##??????????????????? | | ??????????? #### ##???????????????????? | | ?????????? Y ???## ###????????????????????? | | ?????????# ????###??????????????????????? | | ?????????# ?????????????????????????????? | | ?????????# ####?????????????????????????????? | | ?????????? ?????????????????????????????????? | | ???????????? # ?????????????????????????????????? | | ?????????????????????????????????????????????????? | | ?????????????????????????????????????????????????? | | ?????????????????????????????????????????????????? | | ?????????????????????????????????????????????????? | | ?????????????????????????????????????????????????? | | ?????????????????????????????????????????????????? | | ?????????????????????????????????????????????????? | | ?????????????????????????????????????????????????? | | ?????????????????????????????????????????????????? | | ?????????????????????????????????????????????????? | | ?????????????????????????????????????????????????? | | ?????????????????????????????????????????????????? | | ?????????????????????????????????????????????????? | | ?????????????????????????????????????????????????? | +----------------------------------------------------+ Best States ------------- Heat Dissipation 70 Coolant Potential 80 Energy Generation 32 Energy Capacity 450 Matter Stores 300 Matter Capacity 300 Sight Range 16 Terrain Scan Density 10 Base Temperature (-) 150 EM Shielding 3 Armor Coverage 300 Resistance: TH 25 Evasion (%) 55 Targeting Accuracy 8 Armor Integrity Analysis 40 Offensive Hacking 20 Defensive Hacking 26 Item Schematics ----------------- Imp. Cooling System | -6/Factory | Hacked Arm. Huge Wheel | -6/Factory | Scanalyzed Phase Cannon | -6/Factory | Scanalyzed Cld. Pulse Rifle | -6/Factory | Scanalyzed Enh. Gauss Cannon | -6/Factory | Hacked Adv. Cryofiber Web | -6/Factory | Hacked Imp. Focal Shield | -6/Factory | Hacked Robot Schematics ------------------ None Fabricated ------------ Imp. Cooling System | x2 | -6/Factory Enh. Gauss Cannon | x2 | -5/Factory Repaired ---------- Arm. Huge Wheel | 55% | -7/Factory Arm. Huge Wheel | 60% | -6/Factory Gauss Cannon | 48% | -6/Factory Plasma Cannon | 39% | -6/Factory Hrd. Light Armor Plating | 58% | -6/Factory Imp. Shield Generator | 45% | -6/Factory Deuterium Engine | 24% | -6/Factory Gauss Cannon | 20% | -6/Factory Studied --------- Carbon-fiber Leg | -8/Materials | Hacked Arm. Huge Wheel | -7/Factory | Hacked Deuterium Engine | -7/Factory | Hacked Lgt. Armored Exoskeleton | -6/Factory | Hacked Imp. Carbon-fiber Leg | -6/Factory | Hacked Gauss Cannon | -6/Factory | Hacked Phase Cannon | -6/Factory | Hacked Imp. Titanium Leg | -6/Factory | Hacked Imp. VSS Leg | -6/Factory | Hacked Arm. Leg | -5/Factory | Hacked Flexi-carbon Leg | -5/Factory | Hacked KE Penetrator | -5/Factory | Hacked Alien Tech Used ----------------- None Achievements -------------- Achiever Can't Touch This GoHome() Hackathon Into The Breach Myspace Wiki Contributor Challenges ------------ None Game ------ Seed ScatterAntimatterArray Manual? 0 Play Time 03:08:02 Cumulative 51.2 hours Start 2026.04.22 @ 23:28:00 End 2026.04.23 @ 02:48:26 Sessions 1 Manual Loads 0 Difficulty Rogue Special Mode None Game No. 30 Rogue 30 Adventurer 0 Explorer 0 Win Type - Total 0 Types 0/0/0/0/0/0/0/0/0/0 Lore% 15 Gallery% 33 Achievement% 25 Wizard Run 0 Options --------- Layout 1 ASCII 0 Keyboard 1 Movement Numpad Keybinds 0 Fullscreen 1 Font 32/SmallcapsGlow Map View 50x35 Zoom Use 0% Tactical HUD 1 Map Filters NONE Filters NONE Steam 1 RUN: ed505224-1003-4318-b9e4-b862362851c3